lending/lending_fUSD_20240206
["ID","MTS","AMOUNT","RATE_DAILY","PERIOD"]
[313362511,1707233452773,-606.65,0.00050958,60]
[313362512,1707233452807,-500.0,0.00050958,60]
[313362513,1707233452838,-500.0,0.00050958,60]
[313362514,1707233452862,-500.0,0.00050958,60]
[313362515,1707233452888,-500.0,0.00050958,60]
[313362516,1707233452913,-500.0,0.00050958,60]
[313362517,1707233452938,-500.0,0.00050958,60]
[313362518,1707233452964,-500.0,0.00050958,60]
[313362519,1707233452990,-231.47218083,0.00050958,60]
[313362520,1707233453014,-500.0,0.00050958,60]
[313362521,1707233453040,-500.0,0.00050958,60]
[313362522,1707233453070,-500.0,0.00050958,60]
[313362523,1707233453096,-515.18124501,0.00050958,60]
[313362524,1707233453122,-500.0,0.00050958,60]
[313362525,1707233453147,-500.0,0.00050958,60]
[313362526,1707233453172,-500.0,0.00050958,60]
[313362527,1707233453199,-947.83,0.00050958,60]
[313362528,1707233453225,-500.0,0.00050958,60]
[313362529,1707233453250,-500.0,0.00050958,60]
[313362530,1707233453276,-758.62,0.00050958,60]
[313362531,1707233453302,-500.0,0.00050958,60]
[313362532,1707233453327,-659.18,0.00050958,60]
[313362533,1707233453353,-500.0,0.00050958,60]
[313362534,1707233453377,-500.0,0.00050958,60]
[313362535,1707233453412,-500.0,0.00050958,60]
[313362536,1707233453441,-253.40152158,0.00050958,60]
[313362537,1707233453467,-500.0,0.00050958,60]
[313362538,1707233453491,-500.0,0.00050958,60]
[313362539,1707233453516,-500.0,0.00050958,60]
[313362540,1707233453540,-500.0,0.00050958,60]
[313362541,1707233453674,-500.0,0.00050958,60]
[313362542,1707233453705,-500.0,0.00050958,60]
[313362543,1707233453731,-242.97855152,0.00050958,60]
[313362544,1707233453756,-500.0,0.00050958,60]
[313362545,1707233453782,-500.0,0.00050958,60]
[313362546,1707233453810,-500.0,0.00050958,60]
[313362547,1707233453833,-500.0,0.00050958,60]
[313362548,1707233453856,-576.31605502,0.00050958,60]
[313362549,1707233453880,-527.05134025,0.00050958,60]
[313362550,1707233453904,-500.0,0.00050958,60]
[313362551,1707233453927,-500.0,0.00050958,60]
[313362552,1707233453950,-500.0,0.00050958,60]
[313362553,1707233453973,-500.0,0.00050958,60]
[313362554,1707233453996,-500.0,0.00050958,60]
[313362555,1707233454026,-500.0,0.00050958,60]
[313362556,1707233454052,-500.0,0.00050958,60]
[313362557,1707233454077,-500.0,0.00050958,60]
[313362558,1707233454102,-183.78136582,0.00050958,60]
[313362559,1707233454128,-500.0,0.00050958,60]
[313362560,1707233454154,-500.0,0.00050958,60]
[313362561,1707233454179,-500.0,0.00050958,60]
[313362562,1707233454205,-500.0,0.00050958,60]
[313362563,1707233454232,-500.0,0.00050958,60]
[313362564,1707233454259,-500.0,0.00050958,60]
[313362565,1707233454286,-500.0,0.00050958,60]
[313362566,1707233454315,-722.0,0.00050958,60]
[313362567,1707233454341,-500.0,0.00050958,60]
[313362568,1707233454366,-500.0,0.00050958,60]
[313362569,1707233454391,-500.0,0.00050958,60]
[313362570,1707233454414,-500.0,0.00050958,60]
[313362571,1707233454440,-318.35341524,0.00050958,60]
[313362572,1707233454466,-500.0,0.00050958,60]
[313362573,1707233454492,-1736.8,0.00050958,60]
[313362574,1707233454520,-500.0,0.00050958,60]
[313362575,1707233454548,-558.83,0.00050958,60]
[313362576,1707233454576,-500.0,0.00050958,60]
[313362577,1707233454600,-500.0,0.00050958,60]
[313362578,1707233454625,-500.0,0.00050958,60]
[313362579,1707233454648,-205.03248835,0.00050958,60]
[313362580,1707233454672,-500.0,0.00050958,60]
[313362581,1707233454697,-500.0,0.00050958,60]
[313362582,1707233454725,-500.0,0.00050958,60]
[313362583,1707233454749,-500.0,0.00050958,60]
[313362584,1707233454774,-366.86421081,0.00050958,60]
[313362585,1707233454803,-500.0,0.00050958,60]
[313362586,1707233454826,-500.0,0.00050958,60]
[313362587,1707233454850,-500.0,0.00050958,60]
[313362588,1707233454873,-500.0,0.00050958,60]
[313362589,1707233454897,-500.0,0.00050958,60]
[313362590,1707233454920,-500.0,0.00050958,60]
[313362591,1707233454943,-500.0,0.00050958,60]
[313362592,1707233454967,-500.0,0.00050958,60]
[313362593,1707233454991,-330.10787151,0.00050958,60]
[313362594,1707233455102,-500.0,0.00050958,60]
[313362595,1707233455126,-508.60167003,0.00050958,60]
[313362596,1707233455150,-500.0,0.00050958,60]
[313362597,1707233455175,-622.41,0.00050958,60]
[313362598,1707233455200,-500.0,0.00050958,60]
[313362599,1707233455226,-500.0,0.00050958,60]
[313362600,1707233455256,-496.26644337,0.00050958,60]
[313362601,1707233455283,-500.0,0.00050958,60]
[313362602,1707233455313,-500.0,0.00050958,60]
[313362603,1707233455340,-154.49864719,0.00050958,60]
[313362604,1707233455364,-500.0,0.00050958,60]
[313362605,1707233455389,-500.0,0.00050958,60]
[313362606,1707233455413,-514.34209122,0.00050958,60]
[313362607,1707233455438,-500.0,0.00050958,60]
[313362608,1707233455462,-500.0,0.00050958,60]
[313362609,1707233455486,-578.65,0.00050958,60]
[313362610,1707233455509,-500.0,0.00050958,60]
[313362611,1707233455532,-500.0,0.00050958,60]
[313362612,1707233455556,-500.0,0.00050958,60]
[313362613,1707233455581,-500.0,0.00050958,60]
[313362614,1707233455605,-946.27,0.00050958,60]
[313362615,1707233455629,-500.0,0.00050958,60]
[313362616,1707233455654,-500.0,0.00050958,60]
[313362617,1707233455681,-500.0,0.00050958,60]
[313362618,1707233455707,-150.5,0.0005097,120]
[313362619,1707233455729,-150.5,0.0005097,120]
[313362620,1707233455752,-150.5,0.0005098,120]
[313362621,1707233455774,-150.5,0.0005098,120]
[313362622,1707233455800,-182.36,0.0005098,120]
[313362623,1707233455824,-200.0,0.00050987,53]
[313362624,1707233455847,-200.0,0.00050987,52]
[313362625,1707233455872,-200.0,0.00050987,51]
[313362626,1707233455901,-176.8,0.0005099,120]
[313362627,1707233455923,-150.5,0.0005099,120]
[313362628,1707233455946,-150.5,0.0005099,120]
[313362629,1707233455969,-150.5,0.0005099,120]
[313362630,1707233455994,-100000.0,0.00051,41]
[313362631,1707233456018,-100000.0,0.00051,40]
[313362632,1707233456041,-153.25,0.00051,120]
[313362633,1707233456065,-4170.23764705,0.00051,60]
[313362634,1707233456089,-300.0,0.00051,52]
[313362635,1707233456113,-1036635.79,0.00051,120]
[313362636,1707233456136,-20000.0,0.00051,35]
[313362637,1707233456163,-300.0,0.00051,51]
[313362638,1707233456187,-728.0,0.00051,60]
[313362639,1707233456210,-150.0,0.0005108,40]
[313362640,1707233456233,-52542.14381173,0.000511,120]
[313362641,1707233456256,-2038.0,0.000511,60]
[313362642,1707233456279,-164.0,0.000511,60]
[313362643,1707233456306,-166.66666666,0.00051185,60]
[313362644,1707233456330,-3147.0247187,0.000512,120]
[313362645,1707233456435,-666.29395341,0.0005123,60]
[313362646,1707233456462,-173.02668424,0.00051238,60]
[313362647,1707233456484,-2000.0,0.00051281,60]
[313362648,1707233456507,-666.29395341,0.00051285,60]
[313362649,1707233456531,-809.3,0.00051308,120]
[313362650,1707233456555,-666.29395341,0.00051319,60]
[313362651,1707233456580,-666.29395341,0.00051327,60]
[313362652,1707233456604,-500.0,0.00051369,60]
[313362653,1707233456629,-521.28,0.00051369,60]
[313362654,1707233456653,-500.0,0.00051369,60]
[313362655,1707233456677,-500.0,0.00051369,60]
[313362656,1707233456702,-500.0,0.00051369,60]
[313362657,1707233456726,-500.0,0.00051369,60]
[313362658,1707233456750,-388.7904012,0.00051369,60]
[313362659,1707233456775,-503.97704816,0.00051369,60]
[313362660,1707233456802,-500.0,0.00051369,60]
[313362661,1707233456825,-313.25583375,0.00051369,60]
[313362662,1707233456849,-500.0,0.00051369,60]
[313362663,1707233456873,-500.0,0.00051369,60]
[313362664,1707233456897,-500.0,0.00051369,60]
[313362665,1707233456921,-555.94951665,0.00051369,60]
[313362666,1707233456944,-500.0,0.00051369,60]
[313362667,1707233456968,-523.35401662,0.00051369,60]
[313362668,1707233456991,-500.0,0.00051369,60]
[313362669,1707233457015,-500.0,0.00051369,60]
[313362670,1707233457038,-500.0,0.00051369,60]
[313362671,1707233457062,-359.63521351,0.00051369,60]
[313362672,1707233457086,-500.0,0.00051369,60]
[313362673,1707233457109,-1214.81,0.00051369,60]
[313362674,1707233457132,-500.0,0.00051369,60]
[313362675,1707233457156,-500.0,0.00051369,60]
[313362676,1707233457180,-561.09,0.00051369,60]
[313362677,1707233457204,-500.0,0.00051369,60]
[313362678,1707233457228,-826.53,0.00051369,60]
[313362679,1707233457252,-500.0,0.00051369,60]
[313362680,1707233457276,-903.63,0.00051369,60]
[313362681,1707233457299,-500.0,0.00051369,60]
[313362682,1707233457323,-500.0,0.00051369,60]
[313362683,1707233457348,-600.0,0.00051369,60]
[313362684,1707233457371,-500.0,0.00051369,60]
[313362685,1707233457395,-606.65,0.00051369,60]
[313362686,1707233457418,-500.0,0.00051369,60]
[313362687,1707233457442,-466.21358299,0.00051369,60]
[313362688,1707233457466,-500.0,0.00051369,60]
[313362689,1707233457490,-500.0,0.00051369,60]
[313362690,1707233457514,-177.72642759,0.00051369,60]
[313362691,1707233457538,-543.34951022,0.00051369,60]
[313362692,1707233457563,-500.0,0.00051369,60]
[313362693,1707233457585,-167.84864656,0.00051369,60]
[313362694,1707233457611,-500.0,0.00051369,60]
[313362695,1707233457716,-500.0,0.00051369,60]
[313362696,1707233457742,-500.0,0.00051369,60]
[313362697,1707233457766,-607.0232801,0.00051369,60]
[313362698,1707233457791,-500.0,0.00051369,60]
[313362699,1707233457817,-947.83,0.00051369,60]
[313362700,1707233457841,-500.0,0.00051369,60]
[313362701,1707233457865,-500.0,0.00051369,60]
[313362702,1707233457889,-758.62,0.00051369,60]
[313362703,1707233457913,-500.0,0.00051369,60]
[313362704,1707233457937,-659.18,0.00051369,60]
[313362705,1707233457960,-212.57094571,0.00051369,60]
[313362706,1707233457984,-500.0,0.00051369,60]
[313362707,1707233458008,-500.0,0.00051369,60]
[313362708,1707233458032,-500.0,0.00051369,60]
[313362709,1707233458057,-500.0,0.00051369,60]
[313362710,1707233458081,-500.0,0.00051369,60]
[313362711,1707233458105,-500.0,0.00051369,60]
[313362712,1707233458129,-500.0,0.00051369,60]
[313362713,1707233458153,-500.0,0.00051369,60]
[313362714,1707233458177,-405.60662463,0.00051369,60]
[313362715,1707233458202,-500.0,0.00051369,60]
[313362716,1707233458227,-500.0,0.00051369,60]
[313362717,1707233458260,-500.0,0.00051369,60]
[313362718,1707233458284,-500.0,0.00051369,60]
[313362719,1707233458307,-500.0,0.00051369,60]
[313362720,1707233458331,-500.0,0.00051369,60]
[313362721,1707233458354,-358.49479374,0.00051369,60]
[313362722,1707233458378,-500.0,0.00051369,60]
[313362723,1707233458401,-497.44029653,0.00051369,60]
[313362724,1707233458425,-500.0,0.00051369,60]
[313362725,1707233458448,-500.0,0.00051369,60]
[313362726,1707233458473,-231.51677943,0.00051369,60]
[313362727,1707233458497,-500.0,0.00051369,60]
[313362728,1707233458521,-500.0,0.00051369,60]
[313362729,1707233458547,-500.0,0.00051369,60]
[313362730,1707233458572,-500.0,0.00051369,60]
[313362731,1707233458597,-500.0,0.00051369,60]
[313362732,1707233458621,-500.0,0.00051369,60]
[313362733,1707233458644,-722.0,0.00051369,60]
[313362734,1707233458668,-500.0,0.00051369,60]
[313362735,1707233458691,-500.0,0.00051369,60]
[313362736,1707233458723,-500.0,0.00051369,60]
[313362737,1707233458746,-500.0,0.00051369,60]
[313362738,1707233458770,-500.0,0.00051369,60]
[313362739,1707233458796,-1736.8,0.00051369,60]
[313362740,1707233458820,-500.0,0.00051369,60]
[313362741,1707233458843,-558.83,0.00051369,60]
[313362742,1707233458868,-500.0,0.00051369,60]
[313362743,1707233458967,-500.0,0.00051369,60]
[313362744,1707233458991,-500.0,0.00051369,60]
[313362745,1707233459015,-500.0,0.00051369,60]
[313362746,1707233459039,-500.0,0.00051369,60]
[313362747,1707233459063,-500.0,0.00051369,60]
[313362748,1707233459087,-500.0,0.00051369,60]
[313362749,1707233459112,-500.0,0.00051369,60]
[313362750,1707233459140,-500.0,0.00051369,60]
[313362751,1707233459167,-500.0,0.00051369,60]
[313362752,1707233459194,-500.0,0.00051369,60]
[313362753,1707233459219,-500.0,0.00051369,60]
[313362754,1707233459246,-500.0,0.00051369,60]
[313362755,1707233459275,-500.0,0.00051369,60]
[313362756,1707233459308,-500.0,0.00051369,60]
[313362757,1707233459338,-500.0,0.00051369,60]
[313362758,1707233459368,-500.0,0.00051369,60]
[313362759,1707233459398,-622.41,0.00051369,60]
[313362760,1707233459427,-500.0,0.00051369,60]
[313362761,1707233459456,-325.77621793,0.00051369,60]
[313362762,1707233459484,-500.0,0.00051369,60]
[313362763,1707233459516,-500.0,0.00051369,60]
[313362764,1707233459546,-500.0,0.00051369,60]
[313362765,1707233459585,-500.0,0.00051369,60]
[313362766,1707233459617,-500.0,0.00051369,60]
[313362767,1707233459652,-500.0,0.00051369,60]
[313362768,1707233459685,-578.65,0.00051369,60]
[313362769,1707233459717,-500.0,0.00051369,60]
[313362770,1707233459747,-500.0,0.00051369,60]
[313362771,1707233459775,-500.0,0.00051369,60]
[313362772,1707233459810,-500.0,0.00051369,60]
[313362773,1707233459839,-946.27,0.00051369,60]
[313362774,1707233459866,-517.84050345,0.00051369,60]
[313362775,1707233459897,-500.0,0.00051369,60]
[313362776,1707233459922,-500.0,0.00051369,60]
[313362777,1707233459949,-666.29395341,0.00051377,60]
[313362778,1707233459974,-9550.62472053,0.000514,120]
[313362779,1707233460006,-161.54661492,0.00051407,60]
[313362780,1707233460033,-158.89321353,0.00051444,120]
[313362781,1707233460063,-4029.40446737,0.00051492,120]
[313362782,1707233460093,-151.0206,0.00051498,35]
[313362783,1707233460119,-268.03,0.000515,60]
[313362784,1707233460145,-1000000.0,0.000515,120]
[313362785,1707233460170,-392.89,0.00051504,60]
[313362786,1707233460196,-2908.978168,0.00051506,120]
[313362787,1707233460221,-402.81579047,0.00051539,60]
[313362788,1707233460248,-4863.32115275,0.000516,120]
[313362789,1707233460355,-166.6666667,0.00051742,60]
[313362790,1707233460381,-500.0,0.0005178,60]
[313362791,1707233460407,-521.28,0.0005178,60]
[313362792,1707233460432,-512.4464015,0.0005178,60]
[313362793,1707233460458,-506.13927679,0.0005178,60]
[313362794,1707233460484,-500.0,0.0005178,60]
[313362795,1707233460515,-154.69399835,0.0005178,60]
[313362796,1707233460541,-500.0,0.0005178,60]
[313362797,1707233460573,-500.0,0.0005178,60]
[313362798,1707233460601,-500.0,0.0005178,60]
[313362799,1707233460629,-500.0,0.0005178,60]
[313362800,1707233460657,-500.0,0.0005178,60]
[313362801,1707233460686,-500.0,0.0005178,60]
[313362802,1707233460715,-500.0,0.0005178,60]
[313362803,1707233460745,-500.0,0.0005178,60]
[313362804,1707233460772,-500.0,0.0005178,60]
[313362805,1707233460799,-1214.81,0.0005178,60]
[313362806,1707233460833,-500.0,0.0005178,60]
[313362807,1707233460861,-500.0,0.0005178,60]
[313362808,1707233460894,-561.09,0.0005178,60]
[313362809,1707233460922,-500.0,0.0005178,60]
[313362810,1707233460952,-826.53,0.0005178,60]
[313362811,1707233460979,-500.0,0.0005178,60]
[313362812,1707233461005,-903.63,0.0005178,60]
[313362813,1707233461033,-500.0,0.0005178,60]
[313362814,1707233461065,-500.0,0.0005178,60]
[313362815,1707233461093,-600.0,0.0005178,60]
[313362816,1707233461124,-465.21100077,0.0005178,60]
[313362817,1707233461153,-606.65,0.0005178,60]
[313362818,1707233461182,-500.0,0.0005178,60]
[313362819,1707233461210,-500.0,0.0005178,60]
[313362820,1707233461239,-500.0,0.0005178,60]
[313362821,1707233461267,-500.0,0.0005178,60]
[313362822,1707233461297,-500.0,0.0005178,60]
[313362823,1707233461327,-540.4822494,0.0005178,60]
[313362824,1707233461355,-500.0,0.0005178,60]
[313362825,1707233461384,-500.0,0.0005178,60]
[313362826,1707233461415,-947.83,0.0005178,60]
[313362827,1707233461441,-500.0,0.0005178,60]
[313362828,1707233461466,-500.0,0.0005178,60]
[313362829,1707233461492,-758.62,0.0005178,60]
[313362830,1707233461516,-500.0,0.0005178,60]
[313362831,1707233461540,-659.18,0.0005178,60]
[313362832,1707233461567,-219.8,0.0005178,60]
[313362833,1707233461677,-500.0,0.0005178,60]
[313362834,1707233461715,-157.82833883,0.0005178,60]
[313362835,1707233461747,-500.0,0.0005178,60]
[313362836,1707233461779,-500.0,0.0005178,60]
[313362837,1707233461821,-500.0,0.0005178,60]
[313362838,1707233461858,-500.0,0.0005178,60]
[313362839,1707233461890,-500.0,0.0005178,60]
[313362840,1707233461923,-500.0,0.0005178,60]
[313362841,1707233461954,-500.0,0.0005178,60]
[313362842,1707233461985,-500.0,0.0005178,60]
[313362843,1707233462016,-500.0,0.0005178,60]
[313362844,1707233462047,-500.0,0.0005178,60]
[313362845,1707233462082,-500.0,0.0005178,60]
[313362846,1707233462111,-500.0,0.0005178,60]
[313362847,1707233462137,-500.0,0.0005178,60]
[313362848,1707233462165,-500.0,0.0005178,60]
[313362849,1707233462192,-500.0,0.0005178,60]
[313362850,1707233462219,-500.0,0.0005178,60]
[313362851,1707233462247,-500.0,0.0005178,60]
[313362852,1707233462275,-500.0,0.0005178,60]
[313362853,1707233462302,-500.0,0.0005178,60]
[313362854,1707233462334,-500.0,0.0005178,60]
[313362855,1707233462359,-722.0,0.0005178,60]
[313362856,1707233462385,-568.99494767,0.0005178,60]
[313362857,1707233462409,-500.0,0.0005178,60]
[313362858,1707233462436,-500.0,0.0005178,60]
[313362859,1707233462461,-500.0,0.0005178,60]
[313362860,1707233462487,-307.10580664,0.0005178,60]
[313362861,1707233462512,-1736.8,0.0005178,60]
[313362862,1707233462538,-500.0,0.0005178,60]
[313362863,1707233462564,-558.83,0.0005178,60]
[313362864,1707233462590,-500.0,0.0005178,60]
[313362865,1707233462618,-500.0,0.0005178,60]
[313362866,1707233462646,-500.0,0.0005178,60]
[313362867,1707233462673,-500.0,0.0005178,60]
[313362868,1707233462705,-500.0,0.0005178,60]
[313362869,1707233462734,-500.0,0.0005178,60]
[313362870,1707233462762,-500.0,0.0005178,60]
[313362871,1707233462787,-500.0,0.0005178,60]
[313362872,1707233462814,-500.0,0.0005178,60]
[313362873,1707233462839,-500.0,0.0005178,60]
[313362874,1707233462867,-500.0,0.0005178,60]
[313362875,1707233462894,-575.93000645,0.0005178,60]
[313362876,1707233462990,-500.0,0.0005178,60]
[313362877,1707233463016,-500.0,0.0005178,60]
[313362878,1707233463046,-500.0,0.0005178,60]
[313362879,1707233463073,-500.0,0.0005178,60]
[313362880,1707233463099,-500.0,0.0005178,60]
[313362881,1707233463125,-622.41,0.0005178,60]
[313362882,1707233463152,-500.0,0.0005178,60]
[313362883,1707233463178,-500.0,0.0005178,60]
[313362884,1707233463205,-500.0,0.0005178,60]
[313362885,1707233463231,-500.0,0.0005178,60]
[313362886,1707233463257,-500.0,0.0005178,60]
[313362887,1707233463281,-500.0,0.0005178,60]
[313362888,1707233463308,-500.0,0.0005178,60]
[313362889,1707233463332,-578.65,0.0005178,60]
[313362890,1707233463356,-500.0,0.0005178,60]
[313362891,1707233463379,-500.0,0.0005178,60]
[313362892,1707233463403,-500.0,0.0005178,60]
[313362893,1707233463435,-500.0,0.0005178,60]
[313362894,1707233463463,-946.27,0.0005178,60]
[313362895,1707233463489,-500.0,0.0005178,60]
[313362896,1707233463513,-500.0,0.0005178,60]
[313362897,1707233463542,-3026.1,0.00051788,117]
[313362898,1707233463592,-1000.0,0.000518,120]
[313362899,1707233463640,-1000.0,0.000518,120]
[313362900,1707233463684,-2000.0,0.00051832,60]
[313362901,1707233463727,-2000.0,0.00051839,60]
[313362902,1707233463770,-666.29395364,0.00051841,60]
[313362903,1707233463810,-157.15723358,0.0005185,120]
[313362904,1707233463846,-2038.0,0.000519,60]
[313362905,1707233463881,-164.0,0.000519,60]
[313362906,1707233463921,-2724.35034896,0.00051901,60]
[313362907,1707233463958,-2974.16257584,0.00051906,60]
[313362908,1707233463994,-2967.93005073,0.00051907,60]
[313362909,1707233464033,-2816.68772888,0.00051911,60]
[313362910,1707233464074,-2868.22113811,0.00051912,60]
[313362911,1707233464111,-2972.94140825,0.00051917,60]
[313362912,1707233464136,-2884.33482588,0.00051925,60]
[313362913,1707233464160,-2831.95550926,0.00051926,60]
[313362914,1707233464185,-2822.09311018,0.00051926,60]
[313362915,1707233464210,-2830.45818715,0.00051927,60]
[313362916,1707233464236,-1276.19958711,0.00051928,60]
[313362917,1707233464261,-2106.93620027,0.0005193,60]
[313362918,1707233464474,-2828.68599363,0.0005193,60]
[313362919,1707233464503,-2723.70267091,0.00051934,60]
[313362920,1707233464528,-380.47148967,0.00051935,60]
[313362921,1707233464553,-2563.8486986,0.00051936,60]
[313362922,1707233464580,-2554.00658027,0.00051937,60]
[313362923,1707233464604,-2822.14356521,0.00051937,60]
[313362924,1707233464627,-2833.24733961,0.00051937,60]
[313362925,1707233464650,-359.45428275,0.00051938,60]
[313362926,1707233464673,-2265.64122648,0.00051938,60]
[313362927,1707233464701,-2787.25334117,0.0005194,60]
[313362928,1707233464726,-2967.92474815,0.00051942,60]
[313362929,1707233464754,-2577.39357619,0.00051945,60]
[313362930,1707233464781,-2706.56417703,0.00051945,60]
[313362931,1707233464810,-2132.90698221,0.00051946,60]
[313362932,1707233464838,-2821.06261809,0.00051947,60]
[313362933,1707233464863,-2748.16323494,0.00051949,60]
[313362934,1707233464890,-2864.27426824,0.00051953,60]
[313362935,1707233464917,-2968.54452319,0.00051953,60]
[313362936,1707233464943,-2967.39331316,0.00051953,60]
[313362937,1707233464970,-2320.31533202,0.00051956,60]
[313362938,1707233464997,-2702.93624048,0.00051958,60]
[313362939,1707233465040,-2859.27224198,0.0005196,60]
[313362940,1707233465074,-2820.73633163,0.00051962,60]
[313362941,1707233465103,-2257.5015096,0.00051963,60]
[313362942,1707233465131,-2717.89822602,0.00051964,60]
[313362943,1707233465165,-2971.14693209,0.00051964,60]
[313362944,1707233465197,-316.46906589,0.00051964,45]
[313362945,1707233465229,-386.48469603,0.00051964,45]
[313362946,1707233465263,-324.55379641,0.00051964,45]
[313362947,1707233465299,-402.43961835,0.00051964,45]
[313362948,1707233465337,-1557.52132697,0.00051964,45]
[313362949,1707233465367,-2838.1931222,0.00051966,60]
[313362950,1707233465396,-2820.33711432,0.00051969,60]
[313362951,1707233465423,-2765.59637522,0.0005197,60]
[313362952,1707233465450,-2464.13144183,0.0005197,60]
[313362953,1707233465478,-2772.5371911,0.00051972,60]
[313362954,1707233465505,-2860.91309402,0.00051972,60]
[313362955,1707233465532,-2999.57047568,0.00051974,60]
[313362956,1707233465565,-2967.78556763,0.00051974,60]
[313362957,1707233465592,-2972.19069576,0.00051975,60]
[313362958,1707233465618,-2968.20340431,0.00051976,60]
[313362959,1707233465646,-2751.60452483,0.00051978,60]
[313362960,1707233465675,-2836.75437241,0.00051979,60]
[313362961,1707233465709,-2850.4172668,0.00051983,60]
[313362962,1707233465739,-2969.22878135,0.00051984,60]
[313362963,1707233465773,-2971.57763641,0.00051985,60]
[313362964,1707233465802,-200.0,0.00051987,58]
[313362965,1707233465840,-200.0,0.00051987,56]
[313362966,1707233465868,-200.0,0.00051987,54]
[313362967,1707233465894,-2817.72337073,0.00051989,60]
[313362968,1707233465921,-2968.63043914,0.00051994,60]
[313362969,1707233465947,-2847.11238932,0.00051995,60]
[313362970,1707233465972,-453.19576534,0.00051997,60]
[313362971,1707233465996,-2716.03494906,0.00051998,60]
[313362972,1707233466021,-2862.85881582,0.00051999,60]
[313362973,1707233466045,-2829.12112156,0.00051999,60]
[313362974,1707233466077,-100000.0,0.00052,42]
[313362975,1707233466101,-11508.60786147,0.00052,120]
[313362976,1707233466127,-500000.0,0.00052,120]
[313362977,1707233466153,-300.0,0.00052,53]
[313362978,1707233466178,-23430.0,0.00052,35]
[313362979,1707233466203,-727.244542,0.00052054,120]
[313362980,1707233466229,-239.603643,0.00052054,120]
[313362981,1707233466254,-151.85379384,0.00052054,120]
[313362982,1707233467084,2405.88873002,0.00044,120]
[313362983,1707233467140,5000.0,0.00050136,45]
[313362984,1707233467260,669.7365704,0.00050136,60]
[313362985,1707233467562,5002.36096676,0.00049999,60]
[313362986,1707233472630,500.0,0.00049726,60]
[313362987,1707233472903,500.0,0.00050136,60]
[313362988,1707233473167,500.0,0.00050547,60]
[313362989,1707233473464,500.0,0.00050958,60]
[313362990,1707233473741,500.0,0.00051369,60]
[313362991,1707233474000,500.0,0.0005178,60]
[313362992,1707233474178,500.0,0.00049726,60]
[313362993,1707233474484,506.91455636,0.00050136,60]
[313362994,1707233474959,500.0,0.00049726,60]
[313362995,1707233475227,190.51281503,0.00050136,60]
[313362996,1707233476836,500.0,0.00049726,60]
[313362997,1707233476912,500.0,0.00049726,60]
[313362998,1707233477098,500.0,0.00050136,60]
[313362999,1707233477194,500.0,0.00050136,60]
[313363000,1707233477368,500.0,0.00050547,60]
[313363001,1707233477532,500.0,0.00050547,60]
[313363002,1707233477622,500.0,0.00050958,60]
[313363003,1707233477981,500.0,0.00050958,60]
[313363068,1707234346112,-155.0,0.00024918,2]
[313363069,1707234346138,-513.88885423,0.00024919,2]
[313363070,1707234346161,-794.0736188,0.00024919,7]
[313363071,1707234346181,-155.0,0.0002492,2]
[313363072,1707234346200,-155.0,0.00024921,2]
[313363073,1707234346221,-201.89660623,0.00024921,2]
[313363074,1707234346243,-155.0,0.00024922,2]